bitfinex/quotes_BTCUSD_20251110
["timestamp","ask_amount","ask_price","bid_price","bid_amount"]
[1762754766295,0.57807458,106190.0,106180.0,0.00132948]
[1762754766714,0.58107458,106190.0,106180.0,0.00132948]
[1762754766999,0.58507458,106190.0,106180.0,0.00132948]
[1762754769322,0.65086715,106190.0,106180.0,0.00132948]
[1762754769989,0.68704943,106190.0,106180.0,0.00132948]
[1762754770411,1.01004943,106190.0,106180.0,0.00132948]
[1762754770790,1.01382003,106190.0,106180.0,0.00132948]
[1762754771770,1.00682003,106190.0,106180.0,0.00132948]
[1762754771973,1.01182003,106190.0,106180.0,0.00132948]
[1762754772178,1.44806397,106190.0,106180.0,0.00132948]
[1762754772531,1.46558101,106190.0,106180.0,0.00132948]
[1762754772740,1.96856401,106190.0,106180.0,0.00132948]
[1762754773167,0.52553708,106160.0,106150.0,0.00047101]
[1762754773363,0.18841262,106150.0,106140.0,0.01137]
[1762754773615,0.24091262,106150.0,106140.0,0.19980037]
[1762754773758,0.24091262,106150.0,106140.0,0.22076677]
[1762754773959,0.24091262,106150.0,106140.0,0.22170116]
[1762754774479,0.24091262,106150.0,106140.0,0.22218343]
[1762754774684,0.02761,106150.0,106140.0,0.22218343]
[1762754774888,0.18841262,106150.0,106140.0,0.2340245]
[1762754775072,0.2247862,106160.0,106150.0,0.18841262]
[1762754775267,0.2247862,106160.0,106150.0,0.003]
[1762754775472,0.2408962,106160.0,106150.0,0.19211334]
[1762754775790,0.2408962,106160.0,106150.0,0.18911334]
[1762754776189,0.2408962,106160.0,106150.0,0.04238406]
[1762754776546,0.2408962,106160.0,106150.0,0.18911334]
[1762754776765,0.2408962,106160.0,106150.0,0.19411334]
[1762754779392,0.24062121,106160.0,106150.0,0.19411334]
[1762754779953,0.24054621,106160.0,106150.0,0.19411334]
[1762754780343,0.24037121,106160.0,106150.0,0.19411334]
[1762754780543,0.24037121,106160.0,106150.0,0.23569669]
[1762754780854,0.24019621,106160.0,106150.0,0.23569669]
[1762754781115,0.02691001,106160.0,106150.0,0.23569669]
[1762754781326,0.21530488,106160.0,106150.0,0.23569669]
[1762754781534,0.24019488,106160.0,106150.0,0.23569669]
[1762754782186,0.24596524,106170.0,106160.0,0.18839487]
[1762754782187,0.03442,106170.0,106160.0,0.18839487]
[1762754782353,0.23222847,106180.0,106160.0,0.61318429]
[1762754782516,0.23222847,106180.0,106160.0,0.61365339]
[1762754782722,0.23222847,106180.0,106160.0,0.27651118]
[1762754782971,0.23222847,106180.0,106160.0,0.61365339]
[1762754783138,0.26841075,106180.0,106170.0,0.18837713]
[1762754783504,0.26841075,106180.0,106170.0,0.20934353]
[1762754783711,0.28431075,106180.0,106170.0,0.20934353]
[1762754784121,0.28831075,106180.0,106160.0,0.60158339]
[1762754784341,0.25212847,106180.0,106160.0,0.60158339]
[1762754784536,0.23867938,106180.0,106170.0,0.18837713]
[1762754785004,0.24267938,106180.0,106170.0,0.18837713]
[1762754785647,0.05432,106180.0,106170.0,0.18837713]
[1762754785852,0.0155,106180.0,106170.0,0.28183459]
[1762754786058,0.0155,106180.0,106170.0,0.60013909]
[1762754786259,0.21975938,106180.0,106170.0,0.07509046]
[1762754786467,0.21975938,106180.0,106170.0,0.18837713]
[1762754786888,0.21575938,106180.0,106170.0,0.18837713]
[1762754787118,0.21775938,106180.0,106170.0,0.18837713]
[1762754787526,0.24067938,106180.0,106170.0,0.18837713]
[1762754787731,0.24067938,106180.0,106170.0,0.26202246]
[1762754787961,0.24067938,106180.0,106170.0,0.26225599]
[1762754788150,0.002,106180.0,106170.0,0.27432599]
[1762754788391,0.002,106180.0,106170.0,0.2747967]
[1762754788666,0.19035938,106180.0,106170.0,0.2747967]
[1762754788838,0.19035938,106180.0,106170.0,0.27432599]
[1762754789037,0.24144938,106180.0,106170.0,0.07387886]
[1762754789452,0.24144938,106180.0,106170.0,0.26225599]
[1762754790802,0.21852938,106180.0,106170.0,0.26225599]
[1762754791030,0.20262938,106180.0,106170.0,0.27432599]
[1762754791258,0.19035938,106180.0,106170.0,0.28639599]
[1762754791408,0.002,106180.0,106170.0,0.28639599]
[1762754791612,0.002,106180.0,106170.0,0.28686693]
[1762754792165,0.002,106180.0,106170.0,0.6235382]
[1762754793214,0.19035938,106180.0,106170.0,0.62400891]
[1762754793424,0.002,106180.0,106170.0,0.2868667]
[1762754793605,0.002,106180.0,106170.0,0.28639599]
[1762754793812,0.002,106180.0,106170.0,0.6235382]
[1762754794518,0.002,106180.0,106170.0,0.68933077]
[1762754794988,0.002,106180.0,106170.0,1.01233077]
[1762754797012,0.002,106180.0,106170.0,1.4339125]
[1762754798010,0.002,106180.0,106170.0,2.19263644]
[1762754798217,0.002,106180.0,106170.0,2.39310737]
[1762754798387,1e-08,106180.0,106170.0,2.51535608]
[1762754798590,1e-08,106180.0,106170.0,2.53048158]
[1762754799036,1e-08,106180.0,106170.0,2.53948157]
[1762754799295,1e-08,106180.0,106170.0,2.55048157]
[1762754799500,0.00100001,106180.0,106170.0,2.55048157]
[1762754800148,0.001,106180.0,106170.0,2.55048157]
[1762754800312,0.002,106180.0,106170.0,2.56248157]
[1762754800521,0.002,106180.0,106170.0,2.73248157]
[1762754800694,0.001,106180.0,106170.0,2.72048157]
[1762754801077,0.00109591,106210.0,106200.0,0.18832391]
[1762754801318,0.00109591,106210.0,106200.0,0.84056978]
[1762754801542,0.18940209,106210.0,106200.0,0.25012886]
[1762754801740,0.18940209,106210.0,106200.0,0.50303684]
[1762754801950,0.18940209,106210.0,106200.0,0.51510684]
[1762754802289,0.18954665,106210.0,106200.0,0.51510684]
[1762754802714,0.18954665,106210.0,106200.0,0.51710684]
[1762754802925,0.18954665,106210.0,106200.0,0.51757575]
[1762754803136,0.18954665,106210.0,106200.0,0.51710684]
[1762754803347,0.18954665,106210.0,106200.0,0.51810684]
[1762754804334,0.00124047,106210.0,106200.0,0.77148469]
[1762754804541,0.00124047,106210.0,106200.0,0.77148372]
[1762754804746,0.18954665,106210.0,106200.0,0.77148372]
[1762754806002,0.00124047,106210.0,106200.0,0.77148372]
[1762754806625,0.18954665,106210.0,106200.0,0.77148372]
[1762754806837,0.18954665,106210.0,106200.0,0.51857574]
[1762754807047,0.18954665,106210.0,106200.0,0.51810684]
[1762754807252,0.00124047,106210.0,106200.0,0.51810684]
[1762754807490,0.00124047,106210.0,106200.0,0.77148561]
[1762754808203,0.18954665,106210.0,106200.0,0.26566965]
[1762754808407,0.18954665,106210.0,106200.0,0.77101482]
[1762754808614,0.18954665,106210.0,106200.0,0.77148371]
[1762754809760,0.24273665,106210.0,106200.0,0.01553889]
[1762754809974,0.49564463,106210.0,106200.0,0.01507]
[1762754810155,0.49564463,106210.0,106200.0,0.20339391]
[1762754810532,0.24273665,106210.0,106200.0,0.20339391]
[1762754811152,0.24273665,106210.0,106200.0,0.06848163]
[1762754812436,0.49564463,106210.0,106200.0,0.06848163]
[1762754814102,0.49564463,106210.0,106200.0,0.06895243]
[1762754814302,0.49564463,106210.0,106200.0,0.25680554]
[1762754815288,0.05443047,106210.0,106200.0,0.25680554]
[1762754815491,0.24273665,106210.0,106200.0,0.25680554]
[1762754815703,0.00124047,106210.0,106200.0,0.7867615]
[1762754816260,0.18954665,106210.0,106200.0,0.7867615]
[1762754816906,0.18954665,106210.0,106200.0,0.45630189]
[1762754817539,0.18954665,106210.0,106200.0,0.46837189]
[1762754819156,0.18954665,106210.0,106200.0,0.21546391]
[1762754819403,0.18954665,106210.0,106200.0,0.46837189]
[1762754819960,0.00124047,106210.0,106200.0,0.46837189]
[1762754820411,0.18954665,106210.0,106200.0,0.46837189]
[1762754820739,0.00124047,106210.0,106200.0,0.56647362]
[1762754820913,0.00124047,106210.0,106200.0,0.8193816]
[1762754820914,0.18845074,106210.0,106200.0,0.8193816]
[1762754821314,0.20093074,106210.0,106200.0,0.20339391]
[1762754821521,0.23976074,106210.0,106200.0,0.003]
[1762754821683,0.49266872,106210.0,106200.0,0.003]
[1762754822128,0.7455767,106210.0,106200.0,0.003]
[1762754822720,0.7455767,106210.0,106200.0,0.19132391]
[1762754822721,0.30436254,106210.0,106200.0,0.19132391]
[1762754822927,0.05145456,106210.0,106200.0,0.19132391]
[1762754823124,0.00014456,106210.0,106200.0,0.52678795]
[1762754823464,0.00014456,106210.0,106200.0,0.78976593]
[1762754823621,0.00014456,106210.0,106200.0,0.77769593]
[1762754823791,0.00014456,106210.0,106200.0,0.77869593]
[1762754823998,0.00014456,106210.0,106200.0,0.78976593]
[1762754824402,0.00114456,106210.0,106200.0,0.78976593]
[1762754826956,0.00114456,106210.0,106200.0,2.12439785]
[1762754827157,0.00114456,106210.0,106200.0,1.36567391]
[1762754827497,0.00114456,106210.0,106200.0,1.44567391]
[1762754827700,0.00014456,106210.0,106200.0,1.44567391]
[1762754827922,0.00014456,106210.0,106200.0,1.44467391]
[1762754828123,0.00014456,106210.0,106200.0,1.44567391]
[1762754828346,0.00014456,106210.0,106200.0,1.44767391]
[1762754830511,0.00014456,106210.0,106200.0,1.45705248]
[1762754831067,0.00014456,106210.0,106200.0,1.44767391]
[1762754833077,0.00014456,106210.0,106200.0,1.45709495]
[1762754841098,0.00014456,106210.0,106200.0,2.21581889]
[1762754841744,0.00014456,106210.0,106200.0,2.30027198]
[1762754842097,0.00014456,106210.0,106200.0,2.31341261]
[1762754842305,0.00014456,106210.0,106200.0,2.31241261]
[1762754842692,0.00014456,106210.0,106200.0,2.31341261]
[1762754842891,0.00014456,106210.0,106200.0,2.23243032]
[1762754843093,0.00014456,106210.0,106200.0,2.31699971]
[1762754845792,0.00014456,106210.0,106200.0,2.46389971]
[1762754846138,0.00014456,106210.0,106200.0,2.46342891]
[1762754846629,0.00014456,106210.0,106200.0,2.37885952]
[1762754847889,0.00132923,106220.0,106210.0,0.18830618]
[1762754848094,0.00132923,106220.0,106210.0,2.18319019]
[1762754848296,0.00132923,106220.0,106210.0,2.5031746]
[1762754848493,0.00132923,106220.0,106210.0,2.50694205]
[1762754849129,0.00132923,106220.0,106210.0,2.50890317]
[1762754849335,0.00132923,106220.0,106210.0,2.50790317]
[1762754849701,0.00132923,106220.0,106210.0,2.50690317]
[1762754849874,0.00432923,106220.0,106210.0,2.46141074]
[1762754850222,0.00432923,106220.0,106210.0,2.54588609]
[1762754850430,0.00432923,106220.0,106210.0,2.46141074]
[1762754851132,0.00432923,106220.0,106210.0,2.54587066]
[1762754851466,0.00432923,106220.0,106210.0,2.46141074]
[1762754851667,0.00432923,106220.0,106210.0,1.57715194]
[1762754855293,0.00432923,106220.0,106210.0,2.33587588]
[1762754855506,0.00432923,106220.0,106210.0,2.45094]
[1762754855685,0.00432923,106220.0,106210.0,2.45140938]
[1762754856049,0.00432923,106220.0,106210.0,2.25140938]
[1762754856268,0.00432923,106220.0,106210.0,2.33588793]
[1762754856963,0.00432923,106220.0,106210.0,1.40783517]
[1762754857614,0.00432923,106220.0,106210.0,1.55473517]
[1762754859757,0.00432923,106220.0,106210.0,1.75426442]
[1762754859904,0.00432923,106220.0,106210.0,1.75473517]
[1762754860532,0.00416323,106220.0,106210.0,1.75473517]
[1762754861666,0.00416323,106220.0,106210.0,1.87258511]
[1762754862787,0.00416323,106220.0,106210.0,1.87211436]
[1762754863153,0.00416323,106220.0,106210.0,1.87258374]
[1762754864630,0.00416323,106220.0,106210.0,1.87211436]
[1762754865271,0.00416323,106220.0,106210.0,1.19871144]
[1762754865513,0.00416323,106220.0,106210.0,1.87258374]
[1762754865891,0.00416323,106220.0,106210.0,1.72568374]
[1762754866594,0.00416323,106220.0,106210.0,1.52568374]
[1762754868612,0.00416323,106220.0,106210.0,1.72521436]
[1762754871923,0.00416323,106220.0,106210.0,1.72568511]
[1762754872639,0.00416323,106220.0,106210.0,1.52568511]
[1762754874518,0.00416323,106220.0,106210.0,1.52521436]
[1762754874721,0.00416323,106220.0,106210.0,1.52568511]
[1762754876089,0.00416323,106220.0,106210.0,1.18874896]
[1762754876312,0.00416323,106220.0,106210.0,1.52568511]
[1762754876708,0.00416323,106220.0,106210.0,1.18874896]
[1762754876932,0.00416323,106220.0,106210.0,1.52568511]
[1762754878679,0.00416323,106220.0,106210.0,1.17246319]
[1762754879212,0.00416323,106220.0,106210.0,1.05461325]
[1762754879633,0.00416323,106220.0,106210.0,1.12723749]
[1762754879837,0.00416323,106220.0,106210.0,0.39966044]
[1762754880086,0.00416323,106220.0,106210.0,0.73659659]
[1762754880457,0.00416323,106220.0,106210.0,1.05582914]
[1762754880663,0.00216323,106220.0,106210.0,1.03282914]
[1762754881027,0.00316323,106220.0,106210.0,1.04482914]
[1762754881251,0.00216323,106220.0,106210.0,1.02882914]
[1762754881461,0.00216323,106220.0,106210.0,1.04223663]
[1762754881655,0.00316323,106220.0,106210.0,1.05023663]
[1762754882424,0.19145168,106220.0,106210.0,1.05023663]
[1762754882626,0.00316323,106220.0,106210.0,1.05023663]
[1762754883475,0.20375168,106220.0,106210.0,0.29219875]
[1762754883802,0.24324168,106220.0,106210.0,0.28012875]
[1762754885802,0.03079323,106220.0,106210.0,0.28012875]
[1762754886406,0.01546323,106220.0,106210.0,0.29219875]
[1762754887000,0.03079323,106220.0,106210.0,0.28012875]
[1762754887201,0.01546323,106220.0,106210.0,0.22640618]
[1762754887380,0.00316323,106220.0,106210.0,0.30426875]
[1762754887879,0.00316323,106220.0,106210.0,0.6412049]
[1762754889490,0.00316323,106220.0,106210.0,0.7212049]
[1762754890872,0.00316323,106220.0,106210.0,0.81930663]
[1762754891282,0.00316323,106220.0,106210.0,0.48237048]
[1762754891489,0.00316323,106220.0,106210.0,0.81930663]
[1762754892982,0.00316323,106220.0,106210.0,0.48237048]
[1762754893103,0.00316323,106220.0,106210.0,0.81930663]
[1762754895798,0.19145168,106220.0,106210.0,0.80723663]
[1762754896130,0.24324168,106220.0,106210.0,0.29433618]
[1762754896279,0.24324168,106220.0,106210.0,0.10603]
[1762754896475,0.58017783,106220.0,106210.0,0.1]
[1762754896703,0.58064855,106220.0,106210.0,0.008]
[1762754896913,0.18832381,106210.0,106190.0,0.26957496]
[1762754897108,0.18832391,106200.0,106190.0,0.26957496]
[1762754898413,0.21595391,106200.0,106190.0,0.26957496]
[1762754898628,0.24011391,106200.0,106190.0,0.07182257]
[1762754898829,0.24011391,106200.0,106190.0,0.26016422]
[1762754899152,0.18834165,106190.0,106170.0,0.10302777]
[1762754899360,0.18835938,106180.0,106170.0,0.23650989]
[1762754899554,0.18835938,106180.0,106170.0,0.00626353]
[1762754899780,0.0123,106180.0,106170.0,0.19464066]
[1762754900122,0.03693085,106190.0,106180.0,0.18835938]
[1762754900272,0.0123,106190.0,106180.0,0.21926531]
[1762754900467,0.0123,106190.0,106180.0,0.29853111]
[1762754900674,0.20064165,106190.0,106180.0,0.29853111]
[1762754900896,0.0123,106190.0,106180.0,0.29853111]
[1762754901075,0.20064165,106190.0,106180.0,0.29853111]
[1762754901291,0.20164165,106190.0,106180.0,0.29853111]
[1762754901880,0.20064165,106190.0,106180.0,0.29853111]
[1762754902137,0.20164165,106190.0,106180.0,0.29853111]
[1762754902337,0.0133,106190.0,106180.0,0.29853111]
[1762754902536,0.20164165,106190.0,106180.0,0.29853111]
[1762754903992,0.0133,106190.0,106180.0,0.29853111]
[1762754904539,0.001,106190.0,106180.0,0.29853111]
[1762754905796,0.001,106190.0,106180.0,0.20042938]
[1762754906680,0.001,106190.0,106180.0,0.54943553]
[1762754906930,0.18934165,106190.0,106180.0,0.20042938]
[1762754907157,0.001,106190.0,106180.0,0.20042938]
[1762754908653,0.18835938,106180.0,106170.0,0.51764066]
[1762754908859,0.23969938,106180.0,106170.0,0.59039298]
[1762754909089,0.23969938,106180.0,106170.0,0.51764066]
[1762754909264,0.23969938,106180.0,106170.0,0.00626353]
[1762754909757,0.23969938,106180.0,106170.0,0.19564066]
[1762754909931,0.23969938,106180.0,106170.0,0.00726353]
[1762754910687,0.23969938,106180.0,106170.0,0.00826353]
[1762754910903,0.23969938,106180.0,106170.0,0.19664066]
[1762754911339,0.23969938,106180.0,106170.0,0.00826353]
[1762754911718,0.91404257,106180.0,106170.0,0.00223353]
[1762754912081,0.57710642,106180.0,106170.0,0.00223353]
[1762754912259,0.59463738,106180.0,106170.0,0.00223353]
[1762754913054,0.59463738,106180.0,106170.0,0.00123353]
[1762754913295,0.59463738,106180.0,106170.0,0.00023353]
[1762754913684,0.59563738,106180.0,106170.0,0.00023353]
[1762754914366,0.59563738,106180.0,106170.0,0.18861066]
[1762754915494,0.07034185,106180.0,106170.0,0.22631117]
[1762754915695,0.06987096,106180.0,106170.0,0.23234117]
[1762754916193,0.04625096,106180.0,106170.0,0.23234117]
[1762754916923,0.06987096,106180.0,106170.0,0.23234117]
[1762754917362,0.01306,106180.0,106170.0,0.64713989]
[1762754917564,0.01306,106180.0,106170.0,0.31020374]
[1762754918693,0.001,106180.0,106170.0,0.65920989]
[1762754918890,0.001,106180.0,106170.0,1.31914604]
[1762754919072,0.001,106180.0,106170.0,2.1627029]
[1762754919631,0.001,106180.0,106170.0,2.16317313]
[1762754919822,0.0004708,106200.0,106190.0,0.18834165]
[1762754920024,0.20112642,106210.0,106200.0,0.18832391]
[1762754920252,0.24182014,106210.0,106200.0,0.44122877]
[1762754920455,0.06917262,106210.0,106200.0,0.18832391]
[1762754920687,0.2574788,106210.0,106200.0,0.18832391]
[1762754921118,0.2604788,106210.0,106200.0,0.2849607]
[1762754921416,0.2614788,106210.0,106200.0,0.2849607]
[1762754921831,0.07317262,106210.0,106200.0,0.2849607]
[1762754922159,0.04955262,106210.0,106200.0,0.2849607]
[1762754922368,0.2378588,106210.0,106200.0,0.53786556]
[1762754922824,0.2614788,106210.0,106200.0,0.2849607]
[1762754924643,0.07317262,106210.0,106200.0,0.2849607]
[1762754925179,0.07317262,106210.0,106200.0,0.53786556]
[1762754925340,0.2378588,106210.0,106200.0,0.53786556]
[1762754925544,0.2378588,106210.0,106200.0,0.2849607]
[1762754925978,0.2614788,106210.0,106200.0,0.2849607]
[1762754926143,0.2614788,106210.0,106200.0,0.09663679]
[1762754926780,0.18832391,106200.0,106190.0,0.25893486]
[1762754926978,0.76301811,106200.0,106190.0,0.00603]
[1762754927207,0.18834165,106190.0,106180.0,0.51135623]
[1762754927405,0.23968165,106190.0,106180.0,0.51135623]
[1762754927771,0.05134,106190.0,106180.0,0.18835623]
[1762754927966,0.02772,106190.0,106180.0,0.28601213]
[1762754928184,0.01206,106190.0,106180.0,0.55098699]
[1762754928384,0.22447621,106200.0,106190.0,0.18834165]
[1762754928617,0.24158706,106200.0,106190.0,0.18834165]
[1762754928798,0.25744706,106200.0,106190.0,0.18834165]
[1762754929015,0.25844706,106200.0,106190.0,0.18834165]
[1762754930294,0.24086541,106200.0,106190.0,0.18834165]
[1762754930841,0.25844963,106200.0,106180.0,0.53938672]
[1762754931037,0.25892043,106200.0,106180.0,0.53938672]
[1762754931481,0.24133621,106200.0,106180.0,0.53938672]
[1762754931688,0.24133621,106200.0,106190.0,0.18834165]
[1762754931882,0.49277027,106200.0,106190.0,0.18834165]
[1762754932310,0.49377027,106200.0,106190.0,0.18834165]
[1762754932677,0.49277027,106200.0,106190.0,0.18834165]
[1762754933091,0.49377027,106200.0,106190.0,0.18834165]
[1762754935007,0.49377027,106200.0,106190.0,0.22881271]
[1762754935684,0.24086541,106200.0,106190.0,0.18834165]
[1762754936040,0.49377027,106200.0,106190.0,0.18834165]
[1762754936775,0.24086541,106200.0,106190.0,0.18834165]
[1762754936992,0.49377027,106200.0,106190.0,0.18834165]
[1762754938442,0.24086541,106200.0,106190.0,0.18834165]
[1762754938819,0.001,106200.0,106190.0,0.55971424]
[1762754939022,0.001,106200.0,106190.0,0.87841167]
[1762754939224,0.001,106200.0,106190.0,0.37260195]
[1762754939439,0.001,106200.0,106190.0,0.62550681]
[1762754939648,0.18932391,106200.0,106190.0,0.53720908]
[1762754939825,0.18932391,106200.0,106190.0,0.52513908]
[1762754940079,0.24045391,106200.0,106180.0,0.69463568]
[1762754940287,0.49335877,106200.0,106180.0,0.44173082]
[1762754940428,0.05113,106190.0,106180.0,0.44173082]
[1762754940629,0.05113,106190.0,106180.0,0.53943369]
[1762754940834,0.01247,106190.0,106180.0,0.55150369]
[1762754941039,0.22377391,106200.0,106190.0,0.18834165]
[1762754941258,0.24045391,106200.0,106190.0,0.18834165]
[1762754941837,0.05113,106200.0,106190.0,0.19437165]
[1762754942038,0.01247,106200.0,106190.0,0.58439733]
[1762754942246,4.814e-05,106210.0,106200.0,0.18832391]
[1762754942478,0.18835432,106210.0,106200.0,0.45329877]
[1762754942679,4.814e-05,106210.0,106200.0,0.45329877]
[1762754942939,4.814e-05,106210.0,106200.0,0.55100164]
[1762754943277,0.18835432,106210.0,106200.0,0.45329877]
[1762754943475,0.20082432,106210.0,106200.0,0.45329877]
[1762754943893,0.49238918,106210.0,106190.0,0.19483932]
[1762754944040,0.49235877,106200.0,106190.0,0.19437165]
[1762754944250,0.23945391,106200.0,106190.0,0.19437165]
[1762754945459,0.23945391,106200.0,106190.0,0.28421418]
[1762754945460,0.05213,106200.0,106190.0,0.28421418]
[1762754946089,0.24045391,106200.0,106190.0,0.28421418]
[1762754946903,0.18834165,106190.0,106180.0,0.51182271]
[1762754947109,0.23947165,106190.0,106180.0,0.51135298]
[1762754947587,0.23947165,106190.0,106170.0,1.18382698]
[1762754947730,0.23947165,106190.0,106180.0,0.18835938]
[1762754948149,0.23947165,106190.0,106180.0,0.18935938]
[1762754948375,0.23947165,106190.0,106180.0,0.19035938]
[1762754948683,0.23947165,106190.0,106180.0,0.002]
[1762754948889,0.49237651,106190.0,106180.0,0.002]
[1762754949102,0.23947165,106190.0,106180.0,0.002]
[1762754949301,0.23947165,106190.0,106180.0,0.19035938]
[1762754949880,0.23947165,106190.0,106180.0,0.002]
[1762754950081,0.23947165,106190.0,106180.0,0.19035938]
[1762754950475,0.74528137,106190.0,106180.0,0.002]
[1762754951503,0.02815,106190.0,106180.0,0.44326424]
[1762754951714,0.02815,106190.0,106180.0,0.45533424]
[1762754951715,0.01247,106190.0,106180.0,0.45533424]
[1762754952068,0.01247,106190.0,106180.0,0.20242938]
[1762754952490,0.20081165,106190.0,106180.0,0.20242938]
[1762754952672,0.01247,106190.0,106180.0,0.30053111]
[1762754954165,0.01247,106190.0,106180.0,0.55343597]
[1762754954857,0.0129408,106200.0,106190.0,0.18834165]
[1762754955106,0.01247,106200.0,106190.0,0.19437165]
[1762754955307,0.01247,106200.0,106190.0,0.26530104]
[1762754955535,0.01247,106200.0,106190.0,0.49937174]
[1762754956076,0.20079391,106200.0,106190.0,0.49937174]
[1762754956285,0.20079391,106200.0,106190.0,0.20644165]
[1762754956642,0.01347,106200.0,106190.0,0.47818067]
[1762754956986,0.01347,106200.0,106190.0,0.45934651]
[1762754957212,0.01347,106200.0,106190.0,0.20644165]
[1762754957425,0.01347,106200.0,106190.0,0.45934651]
[1762754959462,0.20179391,106200.0,106190.0,0.45934651]
[1762754959667,0.01347,106200.0,106190.0,0.45934651]
[1762754959882,0.20179391,106200.0,106190.0,0.45934651]
[1762754960664,0.24045391,106200.0,106190.0,0.45934651]
[1762754960843,0.05213,106200.0,106190.0,0.45934651]
[1762754961043,0.02915,106200.0,106190.0,0.45934651]
[1762754961341,0.21747391,106200.0,106190.0,0.45934651]
[1762754961499,0.21747391,106200.0,106190.0,0.20644165]
[1762754961704,0.24045391,106200.0,106190.0,0.45934651]
[1762754961892,0.05213,106200.0,106190.0,0.45934651]
[1762754962311,0.05213,106200.0,106190.0,0.55066162]
[1762754962793,0.01347,106200.0,106190.0,0.55066162]
[1762754963356,0.05143,106200.0,106190.0,0.53859162]
[1762754964740,0.02876,106200.0,106190.0,0.53859162]
[1762754965157,0.01347,106200.0,106190.0,0.55066162]
[1762754965977,0.20179391,106200.0,106190.0,0.55066162]
[1762754966187,0.23975391,106200.0,106190.0,0.53859162]
[1762754966393,0.02876,106200.0,106190.0,0.53859162]
[1762754967369,0.01347,106200.0,106190.0,0.55066162]
[1762754977868,0.001,106200.0,106190.0,0.61645419]
[1762754980012,0.001,106200.0,106190.0,0.62852419]
[1762754980227,0.001,106200.0,106190.0,0.88142905]
[1762754980436,0.001,106200.0,106190.0,0.37608959]
[1762754980655,0.001,106200.0,106190.0,0.62899445]
[1762754981073,0.001,106200.0,106190.0,0.37608959]
[1762754981319,0.001,106200.0,106190.0,0.28477448]
[1762754981535,0.18932391,106200.0,106190.0,0.27270448]
[1762754981721,0.18932391,106200.0,106190.0,0.27223422]
[1762754982574,0.001,106200.0,106190.0,0.27223422]
[1762754982772,0.001,106200.0,106190.0,0.27270448]
[1762754983090,0.18932391,106200.0,106190.0,0.27270448]
[1762754983287,0.18932391,106200.0,106190.0,0.27223422]
[1762754983735,0.001,106200.0,106190.0,0.27223422]
[1762754983969,0.18932391,106200.0,106190.0,0.27270448]
[1762754984181,0.18932391,106200.0,106190.0,0.27223422]
[1762754984809,0.001,106200.0,106190.0,0.27223422]
[1762754985024,0.001,106200.0,106190.0,0.27270448]
[1762754985261,0.001,106200.0,106190.0,0.28477448]
[1762754985443,0.001,106200.0,106190.0,0.3726484]
[1762754986324,0.001,106200.0,106190.0,0.70986126]
[1762754987458,4.814e-05,106210.0,106200.0,0.18832391]
[1762754987657,4.814e-05,106210.0,106200.0,0.56850916]
[1762754987858,4.814e-05,106210.0,106200.0,0.26224669]
[1762754988286,4.814e-05,106210.0,106200.0,0.59945955]
[1762754988487,4.814e-05,106210.0,106200.0,0.26224669]
[1762754988848,4.814e-05,106210.0,106200.0,0.26371618]
[1762754989079,4.814e-05,106210.0,106200.0,0.26371749]
[1762754989287,4.814e-05,106210.0,106200.0,0.26324669]
[1762754989502,4.814e-05,106210.0,106200.0,0.26424669]
[1762754990157,4.814e-05,106210.0,106200.0,0.58938955]
[1762754990401,4.814e-05,106210.0,106200.0,0.53960677]
[1762754990911,4.814e-05,106210.0,106200.0,0.55167677]
[1762754991040,4.814e-05,106210.0,106200.0,0.21493471]
[1762754991246,4.814e-05,106210.0,106200.0,0.54007757]
[1762754992124,4.814e-05,106210.0,106200.0,0.55214757]
[1762754992645,4.814e-05,106210.0,106200.0,0.54007757]
[1762754993345,4.814e-05,106210.0,106200.0,0.55167677]
[1762754993544,4.814e-05,106210.0,106200.0,0.55214626]
[1762754994988,4.814e-05,106210.0,106200.0,0.6497785]
[1762754998970,0.18835432,106210.0,106200.0,0.6377085]
[1762754999488,0.18835432,106210.0,106200.0,0.20239391]
[1762754999987,0.21620432,106210.0,106200.0,0.19032391]
[1762755000165,0.24060432,106210.0,106200.0,0.52753677]
[1762755000614,0.21620432,106210.0,106200.0,0.52753677]
[1762755000803,0.02789814,106210.0,106200.0,0.53960677]
[1762755001028,0.01239814,106210.0,106200.0,0.60726101]
[1762755001204,0.01239814,106210.0,106200.0,0.70536274]
[1762755001450,4.814e-05,106210.0,106200.0,0.70536274]
[1762755001582,4.814e-05,106210.0,106200.0,0.71743274]
[1762755003531,4.814e-05,106210.0,106200.0,0.70536274]
[1762755004375,4.814e-05,106210.0,106200.0,0.71743274]
[1762755005379,4.814e-05,106210.0,106200.0,1.0546456]
[1762755005603,4.814e-05,106210.0,106200.0,0.79790354]
[1762755006368,4.814e-05,106210.0,106200.0,1.1351164]
[1762755006953,4.814e-05,106210.0,106200.0,0.79790354]
[1762755008759,4.814e-05,106210.0,106200.0,1.13511509]
[1762755008953,4.814e-05,106210.0,106200.0,1.1346456]
[1762755009186,4.814e-05,106210.0,106200.0,0.79743274]
[1762755009627,4.814e-05,106210.0,106200.0,1.1346456]
[1762755012148,4.814e-05,106210.0,106200.0,1.1351164]
[1762755012354,4.814e-05,106210.0,106200.0,0.79790354]
[1762755014500,4.814e-05,106210.0,106200.0,0.69980181]
[1762755016358,4.814e-05,106210.0,106200.0,0.69933101]
[1762755016794,4.814e-05,106210.0,106200.0,0.96888963]
[1762755016999,4.814e-05,106210.0,106200.0,1.37658387]
[1762755017214,4.814e-05,106210.0,106200.0,1.37705467]
[1762755017415,4.814e-05,106210.0,106200.0,1.4746856]
[1762755017567,4.814e-05,106210.0,106200.0,1.4736856]
[1762755018344,4.814e-05,106210.0,106200.0,1.47615388]
[1762755018973,4.814e-05,106210.0,106200.0,1.4756856]
[1762755019189,4.814e-05,106210.0,106200.0,1.47615388]
[1762755019405,4.814e-05,106210.0,106200.0,1.47515509]
[1762755019630,4.814e-05,106210.0,106200.0,1.4746856]
[1762755019835,4.814e-05,106210.0,106200.0,1.4776856]
[1762755020009,4.814e-05,106210.0,106200.0,1.81489846]
[1762755020187,4.814e-05,106210.0,106200.0,1.39299136]
[1762755020957,4.814e-05,106210.0,106200.0,1.5108413]
[1762755021975,4.814e-05,106210.0,106200.0,1.51131094]
[1762755022193,4.814e-05,106210.0,106200.0,1.393461]
[1762755023121,4.814e-05,106210.0,106200.0,1.4779181]
[1762755025121,4.814e-05,106210.0,106200.0,1.50617856]
[1762755026082,4.814e-05,106210.0,106200.0,0.83175284]
[1762755026288,4.814e-05,106210.0,106200.0,1.50617856]
[1762755029577,0.00022262,106220.0,106210.0,0.54147618]
[1762755029796,0.00022262,106220.0,106210.0,0.98497672]
[1762755029996,0.25245329,106240.0,106230.0,0.18827073]
[1762755030213,0.25203081,106240.0,106230.0,0.18827073]
[1762755030541,0.26767081,106240.0,106230.0,0.18827073]
[1762755030888,0.26767081,106240.0,106230.0,0.18776073]
[1762755031076,0.26767081,106240.0,106230.0,0.26004932]
[1762755031505,0.26767081,106240.0,106230.0,0.26055932]
[1762755031964,0.07000456,106240.0,106230.0,0.26055932]